bitfinex/quotes_SOLUSD_20250818
["timestamp","ask_amount","ask_price","bid_price","bid_amount"]
[1755487840820,0.14216157,183.82,183.8,1e-08]
[1755487841043,3.71136951,183.81,183.8,1e-08]
[1755487841337,3.71136951,183.81,183.8,15.49737585]
[1755487841529,3.56920794,183.81,183.8,15.49737585]
[1755487842133,3.71136951,183.81,183.8,15.49737585]
[1755487842335,3.71136951,183.81,183.8,1e-08]
[1755487842719,13.8134344,183.81,183.8,1e-08]
[1755487842920,18.24857425,183.81,183.8,1e-08]
[1755487843142,12.80817384,183.81,183.8,1e-08]
[1755487843324,0.14216157,183.8,183.78,0.03]
[1755487843527,70.67970786,183.79,183.78,0.03]
[1755487843730,0.14216157,183.78,183.76,0.03]
[1755487844039,8.37303399,183.77,183.76,0.03]
[1755487844236,13.81461857,183.77,183.76,0.03]
[1755487844417,35.26971276,183.77,183.76,0.03]
[1755487844839,19.77233692,183.77,183.76,0.03]
[1755487845340,13.81461857,183.77,183.76,0.03]
[1755487845713,54.5149435,183.77,183.76,0.03]
[1755487845920,50.04303399,183.77,183.76,0.03]
[1755487846145,54.5149435,183.77,183.76,0.03]
[1755487846959,54.5149435,183.77,183.76,15.52737584]
[1755487846960,7.54087242,183.77,183.76,15.52737584]
[1755487847268,3.56920794,183.77,183.76,16.17737584]
[1755487847505,4.47190951,183.83,183.76,31.28359141]
[1755487847671,7.56556417,183.82,183.77,15.75621557]
[1755487847868,0.06,183.84,183.81,15.49737584]
[1755487848066,0.06,183.84,183.82,26.0]
[1755487848357,3.58366374,183.83,183.81,0.65]
[1755487848556,3.58366374,183.82,183.8,5.4406964]
[1755487848759,0.06,183.84,183.81,15.10621557]
[1755487848988,3.58419152,183.83,183.8,5.4406964]
[1755487849187,0.06,183.84,183.82,26.0]
[1755487849490,3.58537292,183.83,183.82,26.0]
[1755487849817,3.58537292,183.83,183.79,15.10621557]
[1755487850081,3.58537292,183.82,183.78,5.44127758]
[1755487850288,0.20216157,183.84,183.8,0.65]
[1755487850594,3.58627359,183.83,183.8,0.65]
[1755487850792,0.06,183.84,183.82,15.49737584]
[1755487851106,0.06,183.84,183.83,16.14737584]
[1755487851304,3.64725136,183.84,183.83,0.65]
[1755487851514,3.64725136,183.84,183.81,15.10621557]
[1755487851809,0.06,183.84,183.83,15.49737584]
[1755487852003,3.64693559,183.84,183.83,16.14737584]
[1755487852193,0.06,183.84,183.83,31.25359141]
[1755487852398,0.06,183.84,183.83,36.69339992]
[1755487852597,0.06,183.84,183.83,15.10621557]
[1755487852807,0.06,183.84,183.83,16.14737584]
[1755487853113,0.06,183.84,183.83,21.58718435]
[1755487853692,0.06,183.84,183.83,36.69339992]
[1755487854207,0.06,183.84,183.83,62.69339992]
[1755487854787,0.06,183.84,183.83,47.19602408]
[1755487854985,0.06,183.84,183.83,62.69339992]
[1755487855206,0.06,183.85,183.83,62.69339992]
[1755487855396,0.06,183.85,183.84,16.14737584]
[1755487856512,0.06,183.85,183.84,15.49737584]
[1755487857016,3.64918535,183.85,183.81,15.10621557]
[1755487857224,0.06,183.85,183.84,15.49737584]
[1755487857715,0.06,183.85,183.82,0.65]
[1755487857886,0.06,183.85,183.84,15.49737584]
[1755487859501,0.75,183.85,183.8,42.36]
[1755487859699,0.06,183.85,183.84,15.49737584]
[1755487860927,0.06,183.85,183.84,21.58688845]
[1755487861091,0.06,183.85,183.84,36.69310402]
[1755487861919,0.06,183.86,183.84,36.69310402]
[1755487862098,0.06,183.87,183.86,15.10621557]
[1755487862300,8.22824435,183.96,183.9,15.10621557]
[1755487862499,8.22824435,183.96,183.95,15.49737584]
[1755487862724,7.53824435,183.96,183.95,15.49737584]
[1755487863024,0.06,184.01,183.95,31.25359141]
[1755487863186,0.06,184.01,184.0,15.49737584]
[1755487863387,0.06,184.01,183.92,26.0]
[1755487863705,0.06,184.01,183.91,19.03104778]
[1755487863706,0.69,184.0,183.94,26.0]
[1755487863917,0.69,184.0,183.99,15.49737584]
[1755487864707,0.69,184.0,183.91,28.69982113]
[1755487864708,0.14216157,183.99,183.91,26.0]
[1755487864909,0.69,183.98,183.95,15.49737584]
[1755487865094,3.58784293,183.98,183.95,15.49737584]
[1755487865302,0.14216157,183.96,183.95,15.49737584]
[1755487865517,3.58784293,183.98,183.95,15.49737584]
[1755487865701,0.14216157,183.97,183.91,26.0]
[1755487866015,0.14216157,183.97,183.96,15.49737584]
[1755487866439,0.75,184.01,183.96,15.49737584]
[1755487866596,0.06,184.01,184.0,15.49737584]
[1755487868314,0.06,184.01,183.97,5.43566885]
[1755487868507,0.06,184.01,183.97,6.08566885]
[1755487868706,0.06,184.01,183.98,0.65]
[1755487868915,0.06,184.01,183.99,0.65]
[1755487869139,0.06,184.03,184.02,56.60359141]
[1755487869347,0.06,184.05,184.02,57.25359141]
[1755487869634,0.06,184.05,184.04,15.49737584]
[1755487869989,0.06,184.09,184.04,31.25359141]
[1755487870194,0.06,184.09,184.06,15.49737584]
[1755487870431,0.06,184.09,184.08,41.10621557]
[1755487870591,0.06,184.09,184.08,46.53863625]
[1755487870792,0.06,184.09,184.08,62.03601209]
[1755487871705,0.06,184.09,184.08,62.68601209]
[1755487871905,0.06,184.09,184.08,46.92979652]
[1755487872104,0.06,184.09,184.08,15.49737584]
[1755487872909,0.75,184.09,184.03,15.10621557]
[1755487873116,0.75,184.09,184.07,15.49737584]
[1755487873312,0.75,184.09,184.08,15.49737584]
[1755487873313,0.06,184.09,184.08,15.49737584]
[1755487873644,0.06,184.09,184.08,57.25359141]
[1755487873827,0.06,184.09,184.08,56.60359141]
[1755487874019,0.06,184.09,184.08,15.49737584]
[1755487874220,0.06,184.09,184.05,15.10621557]
[1755487874450,0.06,184.09,184.07,15.49737584]
[1755487874730,0.69,184.08,184.06,15.49737584]
[1755487874931,0.69,184.07,184.06,15.49737584]
[1755487875414,0.69,184.07,184.02,15.10621557]
[1755487875613,0.14216157,184.06,184.03,15.49737584]
[1755487875818,0.14216157,184.04,184.02,15.49737584]
[1755487876137,0.69,184.03,184.02,15.49737584]
[1755487876303,0.69,184.03,184.01,15.49737584]
[1755487876848,0.67,184.02,184.01,15.49737584]
[1755487877004,0.67,184.02,184.0,15.49737584]
[1755487877440,0.14216157,184.04,184.01,15.49737584]
[1755487877757,0.14216157,184.04,184.02,15.49737584]
[1755487877929,3.56456263,184.06,184.03,15.49737584]
[1755487878129,0.14216157,184.05,183.99,26.0]
[1755487878331,0.81216157,184.05,183.99,26.0]
[1755487878632,0.81216157,184.05,184.01,15.49737584]
[1755487878957,4.23456263,184.05,184.02,15.49737584]
[1755487879170,0.81216157,184.04,184.02,15.49737584]
[1755487879540,0.81216157,184.04,184.01,15.49737584]
[1755487879541,0.67,184.03,184.01,15.49737584]
[1755487879763,0.14216157,184.01,183.97,15.49737584]
[1755487879927,4.3767242,184.01,183.99,15.49737584]
[1755487880127,4.3767242,184.01,184.0,15.49737584]
[1755487880128,3.56456263,184.01,184.0,15.49737584]
[1755487880460,42.86,184.02,184.0,15.49737584]
[1755487881532,42.86,184.02,184.01,15.49737584]
[1755487882766,42.86,184.02,183.97,79.4]
[1755487882767,43.53,184.02,183.97,79.4]
[1755487882948,4.37739681,184.01,183.96,15.49737584]
[1755487883260,0.67,184.0,183.96,15.49737584]
[1755487883452,0.14216157,183.99,183.96,15.49737584]
[1755487883651,0.81216157,183.99,183.96,15.49737584]
[1755487884159,0.14216157,183.99,183.98,15.49737584]
[1755487884762,0.14216157,183.97,183.89,15.10621557]
[1755487884969,0.14216157,183.95,183.92,15.49737584]
[1755487885271,4.37753805,183.95,183.92,15.49737584]
[1755487885571,42.78,183.96,183.94,15.49737584]
[1755487885766,0.14216157,183.97,183.94,15.49737584]
[1755487886066,5.43513266,183.99,183.95,15.49737584]
[1755487886067,42.8,183.96,183.95,15.49737584]
[1755487887048,47.04005197,183.96,183.93,15.49737584]
[1755487887364,43.47,183.96,183.94,15.49737584]
[1755487887842,3.5708348,183.95,183.94,15.49737584]
[1755487888242,42.8,183.96,183.94,15.49737584]
[1755487888442,0.14216157,183.98,183.95,15.49737584]
[1755487888647,0.81216157,183.99,183.95,15.49737584]
[1755487888648,42.72,183.96,183.95,0.7]
[1755487889740,42.64,184.0,183.95,36.73980986]
[1755487890149,42.64,184.0,183.99,15.49737584]
[1755487890356,46.22095861,184.0,183.99,15.49737584]
[1755487890691,5.43537341,183.98,183.92,26.0]
[1755487890841,4.25095861,183.97,183.91,15.10621557]
[1755487891041,3.58095861,183.96,183.94,15.49737584]
[1755487891243,46.22095861,183.95,183.91,5.43737962]
[1755487891551,42.64,183.95,183.92,0.7]
[1755487891965,3.58087555,183.94,183.89,15.10621557]
[1755487892146,42.64,183.95,183.9,0.7]
[1755487892340,3.58384297,183.94,183.9,0.7]
[1755487892540,3.58384297,183.94,183.89,15.10621557]
[1755487892541,0.67,183.94,183.89,15.10621557]
[1755487892768,4.25395575,183.93,183.9,15.49737584]
[1755487893083,4.25395575,183.92,183.9,15.49737584]
[1755487893291,3.58395575,183.91,183.9,15.49737584]
[1755487893846,3.58395575,183.91,183.87,0.03]
[1755487893847,4.25395575,183.91,183.89,15.49737584]
[1755487894161,46.16395575,183.9,183.89,15.49737584]
[1755487894364,3.58395575,183.9,183.89,15.49737584]
[1755487894656,42.58,183.92,183.89,16.19737584]
[1755487894872,42.58,183.92,183.91,15.49737584]
[1755487895073,0.67,183.96,183.91,15.49737584]
[1755487895254,42.56,183.94,183.93,15.49737584]
[1755487895579,46.81652211,183.94,183.92,15.49737584]
[1755487895751,43.23,183.94,183.93,15.49737584]
[1755487895950,46.14626662,183.94,183.93,15.49737584]
[1755487896155,6.24786812,183.97,183.93,15.49737584]
[1755487896156,43.21,183.97,183.93,15.49737584]
[1755487896354,43.21,183.97,183.96,15.49737584]
[1755487896560,46.79753166,183.97,183.96,15.49737584]
[1755487896980,46.12753166,183.97,183.96,15.49737584]
[1755487897673,46.12753166,183.97,183.92,5.43709376]
[1755487897867,3.58753166,183.96,183.91,20.54361459]
[1755487898086,42.54,183.97,183.95,15.49737584]
[1755487898385,4.26053099,183.96,183.91,15.10621557]
[1755487898584,0.14216157,183.94,183.87,0.03]
[1755487898772,46.76053099,183.93,183.87,20.57472796]
[1755487899089,3.59053099,183.92,183.87,20.57472796]
[1755487899288,42.5,183.93,183.88,0.7]
[1755487899490,4.25942803,183.92,183.9,15.49737584]
[1755487899671,4.25942803,183.92,183.87,15.13621557]
[1755487899672,19.75680387,183.91,183.87,0.03]
[1755487899990,0.14216157,183.88,183.87,0.03]
[1755487900168,46.3915896,183.88,183.87,0.03]
[1755487900503,47.0615896,183.88,183.87,0.03]
[1755487900664,62.55896544,183.88,183.87,0.03]
[1755487901001,47.0615896,183.88,183.87,0.03]
[1755487901506,52.49991894,183.88,183.87,0.03]
[1755487901865,47.0615896,183.88,183.87,0.03]
[1755487902297,3.58942803,183.88,183.87,0.03]
[1755487902499,3.58942803,183.88,183.87,15.52737584]
[1755487902701,46.24942803,183.88,183.87,15.52737584]
[1755487902886,46.24942803,183.88,183.87,0.03]
[1755487903096,46.24942803,183.88,183.87,15.52737584]
[1755487903700,42.66,183.88,183.87,15.52737584]
[1755487904111,42.66,183.88,183.87,36.77221652]
[1755487904405,42.62,183.91,183.88,15.10621557]
[1755487904702,42.62,183.91,183.9,15.49737584]
[1755487904881,46.21381724,183.91,183.9,15.49737584]
[1755487905078,46.88381724,183.91,183.9,15.49737584]
[1755487905985,46.21381724,183.91,183.9,15.49737584]
[1755487907894,51.65125946,183.91,183.9,15.49737584]
[1755487908090,52.31125946,183.91,183.89,15.49737584]
[1755487908403,3.59381724,183.9,183.89,15.49737584]
[1755487909023,0.14216157,183.89,183.87,0.03]
[1755487909194,42.42,183.88,183.87,0.03]
[1755487909517,46.15597881,183.88,183.87,0.03]
[1755487909816,46.01381724,183.88,183.87,0.03]
[1755487911186,42.42,183.88,183.87,0.03]
[1755487911602,0.66,183.93,183.87,15.52737584]
[1755487911803,42.4,183.92,183.91,15.49737584]
[1755487912120,3.59163651,183.92,183.91,15.49737584]
[1755487912278,42.38,183.92,183.91,15.49737584]
[1755487912901,5.43593229,183.97,183.91,16.21737584]
[1755487913102,42.36,183.96,183.91,15.49737584]
[1755487913313,3.59154122,183.95,183.94,15.49737584]
[1755487913791,42.36,183.96,183.94,15.49737584]
[1755487913992,42.36,183.96,183.95,15.49737584]
[1755487914192,46.7557803,183.96,183.94,15.49737584]
[1755487914392,4.25402496,183.95,183.93,15.49737584]
[1755487914617,3.59402496,183.95,183.89,5.4380336]
[1755487914795,42.36,183.96,183.94,15.49737584]
[1755487914992,42.36,183.96,183.88,15.82621557]
[1755487914993,0.14216157,183.94,183.88,0.72]
[1755487915214,0.14216157,183.94,183.91,15.49737584]
[1755487915215,42.3,183.93,183.91,15.49737584]
[1755487915396,42.96,183.93,183.91,15.49737584]
[1755487915998,42.3,183.93,183.92,15.49737584]
[1755487916413,45.89722159,183.93,183.92,15.49737584]
[1755487916919,46.55722159,183.93,183.91,15.49737584]
[1755487917124,4.25745444,183.92,183.87,0.03]
[1755487917421,5.4377379,183.9,183.87,15.52737584]
[1755487917626,42.22,183.89,183.87,15.52737584]
[1755487917804,42.22,183.89,183.88,15.49737584]
[1755487918133,46.4796802,183.89,183.87,15.52737584]
[1755487918433,3.5996802,183.88,183.87,15.52737584]
[1755487918643,3.5996802,183.88,183.87,0.03]
[1755487918644,4.2596802,183.88,183.87,0.03]
[1755487919320,3.5996802,183.88,183.87,15.52737584]
[1755487919623,42.22,183.89,183.87,16.24737584]
[1755487919819,42.22,183.89,183.88,15.49737584]
[1755487920020,42.22,183.89,183.88,16.21737584]
[1755487920227,4.45570329,183.96,183.88,16.21737584]
[1755487920400,3.60581893,183.95,183.92,26.0]
[1755487920708,45.13771835,184.01,183.93,0.72]
[1755487920709,42.14,183.96,183.93,0.72]
[1755487920908,42.14,183.97,183.92,26.0]
[1755487921113,3.6067512,183.96,183.92,26.0]
[1755487921421,3.6067512,183.95,183.92,26.72]
[1755487921601,3.6067512,183.96,183.94,15.49737584]
[1755487921799,3.6067512,183.95,183.92,0.72]
[1755487922110,3.60903063,183.94,183.91,15.10621557]
[1755487922315,3.60903063,183.96,183.91,15.10621557]
[1755487922528,3.60903063,183.95,183.91,15.82621557]
[1755487922727,3.60903063,183.94,183.9,5.43768275]
[1755487922933,48.23578516,183.97,183.9,5.43768275]
[1755487923228,3.60917441,183.96,183.95,15.49737584]
[1755487923609,4.26917441,183.96,183.95,15.49737584]
[1755487924125,4.26917441,183.96,183.94,15.49737584]
[1755487924308,3.60917441,183.95,183.94,15.49737584]
[1755487924504,3.60917441,183.95,183.89,20.54424409]
[1755487924727,45.62917441,183.94,183.91,15.49737584]
[1755487924925,3.60917441,183.93,183.92,15.49737584]
[1755487925422,3.60917441,183.93,183.88,32.15824974]
[1755487925623,3.60917441,183.92,183.91,15.49737584]
[1755487927330,3.60917441,183.92,183.91,36.76103363]
[1755487927519,5.95771835,183.99,183.91,15.49737584]
[1755487927520,41.98,183.95,183.91,15.49737584]
[1755487927725,3.61679374,183.94,183.93,15.49737584]
[1755487927914,4.27679374,183.94,183.91,15.49737584]
[1755487928115,3.61679374,183.93,183.91,15.49737584]
[1755487928421,45.51679374,183.92,183.91,15.49737584]
[1755487929631,50.95394032,183.92,183.91,15.49737584]
[1755487929843,56.06964361,183.92,183.88,15.49737584]
[1755487930015,4.27679374,183.91,183.88,15.49737584]
[1755487930215,3.61679374,183.9,183.88,15.49737584]
[1755487930527,45.45679374,183.89,183.88,15.49737584]
[1755487930717,41.82,183.92,183.88,15.49737584]
[1755487931046,3.61868446,183.91,183.88,15.10621557]
[1755487931344,41.82,183.92,183.89,0.72]
[1755487931509,3.61941907,183.91,183.89,0.72]
[1755487931711,3.61923958,183.9,183.88,26.0]
[1755487931929,41.82,183.92,183.87,5.4685579]
[1755487932137,3.61899468,183.91,183.87,0.75]
[1755487932311,47.25721343,183.92,183.9,15.49737584]
[1755487932509,3.61872368,183.91,183.87,0.03]
[1755487932715,3.61872368,183.9,183.88,15.49737584]
[1755487932950,46.03872368,183.89,183.87,0.03]
[1755487933120,45.35872368,183.88,183.87,0.03]
[1755487933327,46.01872368,183.88,183.87,0.03]
[1755487933651,51.45705302,183.88,183.87,0.03]
[1755487934228,50.79705302,183.88,183.87,0.03]
[1755487934627,51.45705302,183.88,183.87,0.03]
[1755487934945,60.0753072,183.88,183.87,0.03]
[1755487935119,60.0753072,183.88,183.86,0.03]
[1755487935120,0.14216157,183.87,183.86,0.03]
[1755487935450,12.96615223,183.87,183.86,0.03]
[1755487935650,18.40477734,183.87,183.86,0.03]
[1755487936048,9.05734879,183.87,183.86,0.03]
[1755487936635,3.61872368,183.87,183.86,0.03]
[1755487936844,9.05734879,183.87,183.86,0.03]
[1755487937556,3.61872368,183.87,183.86,0.03]
[1755487937937,3.61872368,183.87,183.86,15.52737584]
[1755487938129,3.61872368,183.88,183.86,16.23737584]
[1755487938327,41.64,183.88,183.87,15.49737584]
[1755487938529,45.25961109,183.88,183.86,0.03]
[1755487938749,3.61951361,183.87,183.86,0.03]
[1755487939232,41.64,183.88,183.86,0.03]
[1755487939453,41.64,183.88,183.86,0.74]
[1755487939642,4.28937163,183.87,183.86,0.03]
[1755487939834,9.87015831,183.87,183.86,0.03]
[1755487941659,18.41598581,183.87,183.86,0.03]
[1755487941867,29.38848399,183.87,183.86,0.03]
[1755487942627,29.38848399,183.87,183.85,0.03]
[1755487942628,0.14216157,183.86,183.85,0.03]
[1755487942859,0.14216157,183.86,183.83,0.03]
[1755487942860,0.14216157,183.84,183.83,0.03]
[1755487943036,71.00937149,183.84,183.83,1e-08]
[1755487943239,55.51199565,183.84,183.83,1e-08]
[1755487943432,60.0326064,183.84,183.83,1e-08]
[1755487943637,50.82104581,183.84,183.83,1e-08]
[1755487943842,45.23937163,183.84,183.83,15.49737585]
[1755487944759,41.62,183.87,183.83,16.20737585]
[1755487944936,0.06,183.91,183.87,5.43862511]
[1755487945133,0.06,183.91,183.9,15.49737584]
[1755487945336,0.06,183.91,183.88,0.71]
[1755487945531,3.61834619,183.9,183.88,0.71]
[1755487945759,3.67834619,183.91,183.89,15.49737584]
[1755487945944,3.67834619,183.91,183.9,15.49737584]
[1755487947167,3.67834619,183.91,183.9,36.75132931]
[1755487947364,0.06,183.91,183.9,36.75132931]
[1755487947572,0.06,183.93,183.92,41.10621557]
[1755487947734,0.67,184.02,183.92,57.31359141]
[1755487947735,3.61978917,183.99,183.92,57.31359141]
[1755487947948,3.61978917,183.98,183.93,15.10621557]
[1755487948258,41.58,184.01,183.93,15.10621557]
[1755487948259,3.62024564,184.0,183.97,15.49737584]
[1755487948470,3.62024564,184.0,183.97,0.71]
[1755487948671,3.62024564,184.0,183.99,15.49737584]
[1755487950843,47.01453462,184.01,183.99,15.49737584]
[1755487951059,3.7588239,184.0,183.92,0.71]
[1755487951237,3.61666233,183.99,183.97,15.49737584]
[1755487951437,3.7588239,184.0,183.97,15.49737584]
[1755487951661,3.7588239,184.0,183.98,15.49737584]
[1755487951852,3.7588239,184.0,183.99,15.49737584]
[1755487952473,3.61666233,184.0,183.99,15.49737584]
[1755487952683,3.61486782,184.0,183.99,15.49737584]
[1755487952976,4.28486782,184.0,183.97,15.49737584]
[1755487953676,0.14216157,183.98,183.91,0.71]
[1755487953853,0.14216157,183.96,183.87,0.71]
[1755487954044,0.14216157,183.94,183.91,15.49737584]
[1755487954244,42.29216157,183.94,183.92,15.49737584]
[1755487954471,41.62216157,183.94,183.92,15.49737584]
[1755487954649,41.62216157,183.94,183.88,15.10621557]
[1755487954650,41.48,183.94,183.93,15.49737584]
[1755487954851,41.46,183.97,183.93,16.20737584]
[1755487955055,41.46,183.97,183.96,15.49737584]
[1755487955854,41.46,183.97,183.95,15.49737584]
[1755487956069,41.46,183.97,183.96,15.49737584]
[1755487956273,45.07403716,183.97,183.96,15.49737584]
[1755487956470,41.46,183.97,183.95,15.49737584]
[1755487957075,41.46,183.97,183.96,15.49737584]
[1755487957276,41.46,183.97,183.93,0.03]
[1755487957469,4.42551943,183.96,183.93,0.03]
[1755487957856,0.67,183.95,183.93,0.03]
[1755487958051,41.38,183.94,183.93,0.03]
[1755487958475,45.8048483,183.94,183.93,0.03]
[1755487958778,61.30222414,183.94,183.89,0.03]
[1755487958981,0.14216157,183.92,183.89,0.03]
[1755487959176,5.4377379,183.9,183.89,0.03]
[1755487959482,46.81753269,183.91,183.89,15.52737584]
[1755487959657,46.81753269,183.91,183.89,0.03]
[1755487959858,47.48753269,183.91,183.89,0.03]
[1755487960059,4.42465314,183.9,183.89,0.03]
[1755487960261,3.75423362,183.9,183.89,15.52737584]
[1755487960456,41.34,183.9,183.89,15.52737584]
[1755487960651,41.48216157,183.9,183.89,0.03]
[1755487960855,42.15216157,183.9,183.89,0.03]
[1755487961066,45.76441921,183.9,183.89,0.03]
[1755487961280,51.20215711,183.9,183.89,0.03]
[1755487962575,4.42441921,183.9,183.89,0.03]
[1755487962778,41.5,183.9,183.89,15.52737584]
[1755487964395,41.5,183.9,183.89,0.03]
[1755487964765,41.5,183.9,183.89,15.52737584]
[1755487965592,41.5,183.9,183.89,0.03]
[1755487965965,66.86056522,183.9,183.89,0.03]
[1755487966485,51.36318938,183.9,183.89,0.03]
[1755487967076,66.86056522,183.9,183.89,0.03]
[1755487967895,51.36318938,183.9,183.89,0.03]
[1755487968193,66.86056522,183.9,183.89,0.03]
[1755487968703,51.36318938,183.9,183.89,0.03]
[1755487969277,66.86056522,183.9,183.89,0.03]
[1755487970272,51.36318938,183.9,183.89,0.03]
[1755487970477,66.86056522,183.9,183.89,0.03]
[1755487971889,41.63953741,183.88,183.87,0.03]
[1755487972201,86.65282732,183.88,183.87,0.03]
[1755487972596,87.34282732,183.88,183.87,0.03]
[1755487973407,92.78115666,183.88,183.87,0.03]
[1755487974393,96.78653979,183.88,183.87,0.03]
[1755487974701,92.78115666,183.88,183.87,0.03]
[1755487977510,101.30541838,183.88,183.85,0.03]
[1755487977679,101.30541838,183.88,183.83,1e-08]
[1755487977680,26.14216157,183.84,183.83,1e-08]
[1755487977880,101.61904289,183.84,183.83,1e-08]
[1755487978090,110.83208224,183.84,183.83,1e-08]
[1755487978405,96.64476853,183.84,183.83,1e-08]
[1755487978609,116.27159485,183.84,183.83,1e-08]
[1755487980500,96.64476853,183.84,183.83,1e-08]
[1755487981087,80.39739269,183.84,183.83,1e-08]
[1755487981284,9.19496409,183.84,183.83,1e-08]
[1755487981522,46.63951261,183.84,183.83,1e-08]
[1755487981691,66.44017836,183.84,183.83,1e-08]
[1755487982004,70.58468869,183.84,183.83,1e-08]
[1755487982206,66.58233993,183.84,183.83,1e-08]
[1755487982709,70.58363072,183.84,183.83,1e-08]
[1755487982926,90.21045704,183.84,183.83,1e-08]
[1755487983225,0.14216157,183.83,183.82,1e-08]
[1755487983387,49.25411811,183.83,183.82,1e-08]
[1755487983593,49.94411811,183.83,183.82,1e-08]
[1755487983810,49.94411811,183.83,183.81,0.03]
[1755487983811,41.63953741,183.82,183.81,1e-08]
[1755487984119,0.14216157,183.78,183.67,250.0]
[1755487984318,5.44306553,183.72,183.68,15.49737584]
[1755487984618,41.30216157,183.71,183.69,0.71]
[1755487984816,41.30216157,183.71,183.68,15.49737584]
[1755487985026,41.30216157,183.71,183.68,16.20737584]
[1755487985314,41.30216157,183.71,183.67,250.0]
[1755487985522,41.30216157,183.71,183.67,250.71]
[1755487986019,0.14216157,183.69,183.67,250.0]
[1755487986320,57.44953741,183.68,183.67,250.0]
[1755487986517,88.89378828,183.68,183.67,222.73129295]
[1755487986735,73.39641244,183.68,183.67,222.73129295]
[1755487987015,72.70641244,183.68,183.67,222.73129295]
[1755487987820,26.14216157,183.68,183.67,222.73129295]
[1755487987991,5.44247305,183.74,183.67,238.93866879]
[1755487988191,9.02802762,183.74,183.67,223.44129295]
[1755487988402,5.44306553,183.72,183.67,223.44129295]
[1755487988612,83.34737584,183.71,183.67,222.73129295]
[1755487988812,0.14216157,183.7,183.67,222.73129295]
[1755487989011,41.16,183.69,183.67,222.73129295]
[1755487989193,0.14216157,183.68,183.67,222.73129295]
[1755487989393,16.32953741,183.68,183.67,222.73129295]
[1755487989818,19.91049263,183.68,183.67,222.73129295]
[1755487990124,0.14216157,183.68,183.67,222.73129295]
[1755487990493,41.28216157,183.68,183.67,222.73129295]
[1755487990692,0.14216157,183.68,183.67,222.73129295]
[1755487990895,46.74641244,183.68,183.67,222.73129295]
[1755487991197,47.43641244,183.68,183.67,222.73129295]
[1755487991619,5.58613057,183.69,183.67,222.73129295]
[1755487991821,41.30216157,183.68,183.67,222.73129295]
[1755487992627,46.74641244,183.68,183.67,222.73129295]
[1755487993230,62.24378828,183.68,183.67,222.73129295]
[1755487993592,46.74641244,183.68,183.67,223.44129295]
[1755487993938,46.74641244,183.68,183.67,222.73129295]
[1755487994126,62.93378828,183.68,183.67,222.73129295]
[1755487994443,62.93378828,183.68,183.67,165.84974727]
[1755487994444,81.61544258,183.68,183.67,165.84974727]
[1755487994725,101.96109986,183.68,183.67,105.63807979]
[1755487994927,101.96109986,183.68,183.67,73.85396131]
[1755487995100,101.96109986,183.68,183.67,9.29885916]
[1755487995506,26.0,183.66,183.63,0.63528213]
[1755487995830,15.63953741,183.64,183.63,0.63528213]
[1755487996326,16.28953741,183.64,183.63,0.63528213]
[1755487996499,21.73497413,183.64,183.63,0.63528213]
[1755487997308,21.73497413,183.64,183.53,0.7]
[1755487997309,0.14216157,183.6,183.53,0.7]
[1755487997630,0.14216157,183.56,183.53,0.7]
[1755487997843,41.30216157,183.55,183.54,0.7]
[1755487998143,0.14216157,183.54,183.52,0.7]
[1755487998450,41.16,183.53,183.52,15.49737584]
[1755487998941,41.16,183.53,183.52,0.7]
[1755487999116,41.16,183.53,183.47,194.17647467]
[1755487999321,0.65,183.61,183.49,0.7]
[1755487999538,0.14216157,183.54,183.49,16.19737584]
[1755487999717,0.14216157,183.52,183.5,0.7]
[1755487999923,41.26216157,183.51,183.5,0.7]
[1755488000243,0.14216157,183.5,183.47,194.87647467]
[1755488000451,41.12,183.49,183.48,0.7]
[1755488001417,46.56988827,183.49,183.48,0.7]
[1755488001645,41.12,183.49,183.48,0.7]
[1755488002139,41.26216157,183.49,183.48,0.7]
[1755488002351,41.12,183.49,183.48,0.7]
[1755488003845,41.12,183.49,183.48,16.19737584]
[1755488004419,41.12,183.49,183.48,0.7]
[1755488004631,41.12,183.49,183.48,16.19737584]